bitfinex/quotes_BTCUSD_20241130
["timestamp","ask_amount","ask_price","bid_price","bid_amount"]
[1732928975895,0.10354938,96909.0,96908.0,0.0835654]
[1732928976335,0.10354938,96909.0,96908.0,0.0845654]
[1732928976991,0.001,96909.0,96908.0,0.0845654]
[1732928977206,0.104189,96909.0,96908.0,0.0845654]
[1732928977854,0.001,96909.0,96908.0,0.0845654]
[1732928978504,0.001,96909.0,96908.0,0.1307654]
[1732928979401,0.104189,96909.0,96908.0,0.1307654]
[1732928979638,0.001,96909.0,96908.0,0.1307654]
[1732928982781,0.0027314,96909.0,96908.0,0.1307654]
[1732928983257,0.1059204,96909.0,96908.0,0.1307654]
[1732928983916,0.1059204,96909.0,96908.0,0.0048654]
[1732928984569,0.1059204,96909.0,96908.0,0.0038654]
[1732928984782,0.1049204,96909.0,96908.0,0.0008654]
[1732928985015,0.1049204,96909.0,96908.0,0.0028654]
[1732928985897,0.1049204,96909.0,96908.0,0.0008654]
[1732928986146,0.1089204,96909.0,96908.0,0.0008654]
[1732928986354,0.1049204,96909.0,96908.0,0.0008654]
[1732928987287,0.1069204,96909.0,96908.0,0.0008654]
[1732928987696,0.1049204,96909.0,96908.0,0.0008654]
[1732928987946,0.1079204,96909.0,96908.0,0.0008654]
[1732928993702,0.1079204,96909.0,96908.0,0.05101455]
[1732929001188,0.1079204,96909.0,96908.0,0.05105316]
[1732929001398,0.1079204,96909.0,96908.0,0.0510773]
[1732929002022,0.10758987,96909.0,96908.0,0.0510773]
[1732929005379,0.10758987,96909.0,96908.0,0.17151159]
[1732929006090,0.10758987,96909.0,96908.0,0.22141159]
[1732929006378,0.10558987,96909.0,96908.0,0.22141159]
[1732929006852,0.10458987,96909.0,96908.0,0.22141159]
[1732929007284,0.10458987,96909.0,96908.0,0.22241159]
[1732929007946,0.10458987,96909.0,96908.0,0.22441159]
[1732929008411,0.10458987,96909.0,96908.0,0.1907773]
[1732929010289,0.20743508,96909.0,96908.0,0.0590773]
[1732929010494,0.23271824,96909.0,96908.0,0.0590773]
[1732929010706,0.23043508,96909.0,96908.0,0.0590773]
[1732929011142,0.23043508,96909.0,96908.0,0.02617767]
[1732929011372,0.42603508,96909.0,96908.0,0.02617767]
[1732929011573,0.42603508,96909.0,96908.0,0.02017767]
[1732929011778,0.42803508,96909.0,96908.0,0.02017767]
[1732929011981,0.42803508,96909.0,96908.0,0.0008654]
[1732929012192,0.42603508,96909.0,96908.0,0.0008654]
[1732929012399,0.50953508,96909.0,96908.0,0.0008654]
[1732929013244,0.51253508,96909.0,96908.0,0.0008654]
[1732929013680,0.50953508,96909.0,96908.0,0.0008654]
[1732929013957,0.50453508,96909.0,96908.0,0.0008654]
[1732929014163,0.51853508,96909.0,96908.0,0.0018654]
[1732929015282,0.52971412,96909.0,96908.0,0.0018654]
[1732929028396,0.52971412,96909.0,96908.0,4e-07]
[1732929029093,0.52971412,96909.0,96890.0,0.03538921]
[1732929029094,0.126208,96891.0,96890.0,0.03538921]
[1732929029364,0.37905321,96891.0,96890.0,0.01929636]
[1732929029584,0.37905321,96891.0,96890.0,2.1e-07]
[1732929030427,0.38305321,96891.0,96890.0,2.1e-07]
[1732929031932,0.38505321,96891.0,96890.0,2.1e-07]
[1732929035412,0.39582877,96891.0,96890.0,2.1e-07]
[1732929036110,0.26998356,96891.0,96890.0,2.1e-07]
[1732929037909,0.26998356,96891.0,96890.0,0.01929199]
[1732929039794,0.27171536,96891.0,96890.0,0.01929199]
[1732929040483,0.27171536,96891.0,96890.0,0.01932266]
[1732929041159,0.12171536,96891.0,96890.0,0.0579657]
[1732929041365,0.12171536,96891.0,96877.0,0.103223]
[1732929041366,0.43752913,96880.0,96877.0,0.103223]
[1732929041598,0.43752913,96880.0,96871.0,0.0002]
[1732929041599,0.43752913,96880.0,96871.0,0.206659]
[1732929041816,0.43752913,96880.0,96871.0,0.0002]
[1732929042229,0.43752913,96880.0,96871.0,0.216659]
[1732929042434,0.43752913,96880.0,96875.0,0.103225]
[1732929042715,0.43770871,96880.0,96875.0,0.103225]
[1732929042920,0.43770871,96880.0,96872.0,0.206458]
[1732929043128,0.43770871,96880.0,96871.0,0.0132]
[1732929043361,0.43770871,96880.0,96873.0,0.206455]
[1732929043580,0.43770871,96880.0,96876.0,0.103223]
[1732929043820,0.43770871,96880.0,96877.0,0.005]
[1732929043821,0.43870871,96880.0,96877.0,0.005]
[1732929044041,0.43870871,96880.0,96871.0,0.229659]
[1732929044042,0.43770871,96880.0,96871.0,0.229659]
[1732929044287,0.43770871,96880.0,96876.0,0.103224]
[1732929044504,0.43870871,96880.0,96877.0,0.229323]
[1732929044921,0.43770871,96880.0,96877.0,0.1261]
[1732929045388,0.43770871,96880.0,96879.0,0.103221]
[1732929045611,0.43770871,96880.0,96877.0,0.1261]
[1732929046048,0.43770871,96880.0,96877.0,0.232323]
[1732929046264,0.103221,96879.0,96877.0,0.1291]
[1732929046685,0.43770871,96880.0,96877.0,0.1341]
[1732929046686,0.43870871,96880.0,96877.0,0.1341]
[1732929047154,0.54192871,96880.0,96877.0,0.1341]
[1732929047362,0.54092871,96880.0,96877.0,0.1291]
[1732929047571,0.103222,96878.0,96877.0,0.1291]
[1732929047810,0.104221,96879.0,96877.0,0.1351]
[1732929048069,0.43770871,96880.0,96877.0,0.1261]
[1732929048282,0.103222,96878.0,96877.0,0.1261]
[1732929048910,0.43770871,96880.0,96877.0,0.1261]
[1732929049140,0.103222,96879.0,96877.0,0.1261]
[1732929049369,0.43770871,96880.0,96877.0,0.1291]
[1732929049593,0.103222,96878.0,96877.0,0.1291]
[1732929050032,0.103222,96878.0,96877.0,0.008]
[1732929050742,0.103222,96878.0,96877.0,0.003]
[1732929050955,0.43770871,96880.0,96871.0,0.0002]
[1732929051167,0.103229,96872.0,96871.0,0.0002]
[1732929052080,0.103229,96872.0,96871.0,0.0032]
[1732929052565,0.103229,96872.0,96871.0,0.0002]
[1732929052989,0.103229,96872.0,96871.0,0.0032]
[1732929053242,0.103229,96872.0,96871.0,0.0082]
[1732929053466,0.103229,96872.0,96871.0,0.02751985]
[1732929053697,0.103229,96872.0,96871.0,0.02251985]
[1732929053921,0.104229,96872.0,96871.0,0.02851985]
[1732929054808,0.104229,96872.0,96871.0,0.02551985]
[1732929055259,0.104229,96872.0,96871.0,0.02851985]
[1732929055516,0.104229,96872.0,96871.0,0.0092]
[1732929055756,0.104229,96872.0,96871.0,0.02851739]
[1732929058397,0.104229,96872.0,96871.0,0.02851502]
[1732929059628,0.104229,96872.0,96871.0,0.02851346]
[1732929060202,0.10254427,96872.0,96871.0,0.02851346]
[1732929061725,0.25254427,96872.0,96871.0,0.02851346]
[1732929062341,0.25223036,96872.0,96871.0,0.02851346]
[1732929062806,0.42317557,96872.0,96871.0,0.02851346]
[1732929063023,0.42317557,96872.0,96871.0,0.0092]
[1732929063717,0.42217557,96872.0,96871.0,0.0032]
[1732929063937,0.42217557,96872.0,96871.0,0.0002]
[1732929064166,0.42517557,96872.0,96871.0,0.0002]
[1732929064361,0.42717557,96872.0,96871.0,0.0010654]
[1732929064852,0.42517557,96872.0,96871.0,0.0010654]
[1732929065061,0.42717557,96872.0,96871.0,0.0010654]
[1732929072916,0.43184853,96872.0,96871.0,0.0010654]
[1732929076455,0.43357933,96872.0,96871.0,0.0010654]
[1732929077380,0.43357933,96872.0,96871.0,0.02037638]
[1732929078302,0.43357933,96872.0,96871.0,0.0010654]
[1732929079332,0.43357933,96872.0,96871.0,0.02039326]
[1732929080153,0.43357933,96872.0,96871.0,0.0010654]
[1732929080354,0.43357933,96872.0,96871.0,0.02039844]
[1732929081025,0.43357933,96872.0,96868.0,0.00012663]
[1732929081026,0.103232,96869.0,96868.0,0.00012663]
[1732929081234,0.38136144,96869.0,96868.0,0.00012663]
[1732929081377,0.38433278,96869.0,96868.0,0.00012663]
[1732929082279,0.38633278,96869.0,96868.0,0.00012663]
[1732929082443,0.51493278,96869.0,96868.0,0.00012663]
[1732929083078,0.51593278,96869.0,96868.0,0.00012663]
[1732929085497,0.38733278,96869.0,96868.0,0.00012663]
[1732929085718,0.279232,96869.0,96868.0,0.00012663]
[1732929085932,0.279232,96869.0,96868.0,0.07992663]
[1732929085933,0.256232,96869.0,96868.0,0.07992663]
[1732929086388,0.256232,96869.0,96868.0,0.1186202]
[1732929086818,0.255232,96869.0,96868.0,0.1186202]
[1732929087209,0.253232,96869.0,96868.0,0.1186202]
[1732929087621,0.253232,96869.0,96868.0,0.1196202]
[1732929087818,0.253232,96869.0,96868.0,0.1204856]
[1732929089279,0.253232,96869.0,96868.0,0.0406856]
[1732929089478,0.253232,96869.0,96868.0,0.07163387]
[1732929090331,0.253232,96869.0,96868.0,0.0329403]
[1732929091288,0.253232,96869.0,96868.0,0.07161771]
[1732929093033,0.253232,96869.0,96868.0,0.09095312]
[1732929093733,0.103232,96869.0,96868.0,0.09095312]
[1732929093963,0.41713056,96870.0,96868.0,0.09095312]
[1732929093964,0.41713056,96870.0,96868.0,0.17075312]
[1732929094168,0.41713056,96870.0,96869.0,0.10301282]
[1732929094431,0.41713056,96870.0,96869.0,0.31699309]
[1732929094898,0.41713056,96870.0,96869.0,0.21376109]
[1732929095792,0.41713056,96870.0,96869.0,0.31699309]
[1732929096015,0.41813056,96870.0,96869.0,0.21976109]
[1732929096238,0.41813056,96870.0,96869.0,0.22476109]
[1732929096714,0.41813056,96870.0,96869.0,0.32799309]
[1732929097254,0.41813056,96870.0,96869.0,0.22476109]
[1732929098866,0.41813056,96870.0,96869.0,0.32799309]
[1732929100493,0.37165349,96870.0,96869.0,0.32799309]
[1732929100968,0.37165349,96870.0,96869.0,0.4508383]
[1732929102165,0.37165349,96870.0,96869.0,1.3085383]
[1732929102392,0.37165349,96870.0,96869.0,1.9583383]
[1732929102832,0.37165349,96870.0,96869.0,1.99047302]
[1732929103064,0.37165349,96870.0,96869.0,1.98547302]
[1732929103556,0.37165349,96870.0,96869.0,1.98545614]
[1732929103804,0.37065349,96870.0,96869.0,1.97945614]
[1732929104026,0.37165349,96870.0,96869.0,1.89949505]
[1732929104251,0.37165349,96870.0,96869.0,1.98812152]
[1732929104485,0.37165349,96870.0,96869.0,1.95600368]
[1732929104760,0.37165349,96870.0,96869.0,1.94700368]
[1732929104980,0.37065349,96870.0,96869.0,1.95043268]
[1732929105217,0.37965349,96870.0,96869.0,1.95143268]
[1732929105446,0.37965349,96870.0,96869.0,1.94543268]
[1732929105664,0.38065349,96870.0,96869.0,1.94643268]
[1732929106523,0.38065349,96870.0,96869.0,1.97851379]
[1732929106865,0.38065349,96870.0,96869.0,2.09766526]
[1732929106866,0.31612111,96870.0,96869.0,2.09766526]
[1732929107075,0.31612111,96870.0,96869.0,2.12841291]
[1732929107319,0.31612111,96870.0,96869.0,2.0963318]
[1732929107532,0.31612111,96870.0,96869.0,2.06554094]
[1732929107765,0.31612111,96870.0,96869.0,2.09633279]
[1732929107998,0.31612111,96870.0,96869.0,2.02705112]
[1732929108220,0.31612111,96870.0,96869.0,2.08476836]
[1732929108430,0.31612111,96870.0,96869.0,2.09630598]
[1732929111576,0.31612111,96870.0,96869.0,2.09626266]
[1732929112214,0.31612111,96870.0,96869.0,2.09712806]
[1732929112470,0.31785191,96870.0,96869.0,2.09712806]
[1732929113655,0.31785191,96870.0,96869.0,2.05866873]
[1732929114721,0.31785191,96870.0,96869.0,2.0971439]
[1732929114940,0.31785191,96870.0,96869.0,2.00867161]
[1732929115177,0.31785191,96870.0,96869.0,2.0971645]
[1732929115387,0.31785191,96870.0,96869.0,2.05868933]
[1732929115597,0.31785191,96870.0,96869.0,2.06638436]
[1732929115795,0.31785191,96870.0,96869.0,2.09716449]
[1732929116293,0.27138834,96870.0,96869.0,2.03946216]
[1732929116520,0.27138834,96870.0,96869.0,2.09719444]
[1732929117168,0.27138834,96870.0,96869.0,2.05870625]
[1732929118066,0.27138834,96870.0,96869.0,1.77647725]
[1732929118298,0.27138834,96870.0,96869.0,1.78647725]
[1732929119031,0.26138834,96870.0,96869.0,1.78450172]
[1732929119275,0.26138834,96870.0,96869.0,1.78550172]
[1732929119515,0.27038834,96870.0,96869.0,1.78550172]
[1732929120958,0.27738834,96870.0,96869.0,1.78650172]
[1732929121197,0.26838834,96870.0,96869.0,1.78550172]
[1732929121429,0.26238834,96870.0,96869.0,1.78450172]
[1732929121687,0.26338834,96870.0,96869.0,1.78950172]
[1732929121912,0.26338834,96870.0,96869.0,1.73944261]
[1732929122146,0.26338834,96870.0,96869.0,1.78954558]
[1732929123079,0.26338834,96870.0,96869.0,0.28204558]
[1732929123297,0.26338834,96870.0,96869.0,0.32059936]
[1732929124678,0.26338834,96870.0,96869.0,0.32067826]
[1732929124906,0.26338834,96870.0,96869.0,0.44657826]
[1732929126275,0.19884884,96870.0,96869.0,0.47870442]
[1732929126491,0.19884884,96870.0,96869.0,0.44657826]
[1732929127199,0.19884884,96870.0,96869.0,0.40799754]
[1732929127401,0.19884884,96870.0,96869.0,0.44012419]
[1732929127621,0.19784884,96870.0,96869.0,0.58512419]
[1732929127844,0.19684884,96870.0,96869.0,0.5851463]
[1732929128054,0.20584884,96870.0,96869.0,0.5861463]
[1732929128267,0.21484884,96870.0,96869.0,0.6101463]
[1732929128733,0.20584884,96870.0,96869.0,0.6091463]
[1732929128953,0.13877219,96870.0,96869.0,0.6081463]
[1732929129210,0.05743619,96870.0,96869.0,0.64774484]
[1732929129426,0.03104001,96870.0,96869.0,0.64774484]
[1732929130121,0.03804001,96870.0,96869.0,0.64874484]
[1732929130339,0.01476082,96870.0,96869.0,0.7187463]
[1732929130559,0.00776082,96870.0,96869.0,1.8623933]
[1732929130776,8.2e-07,96870.0,96869.0,1.5918033]
[1732929130999,8.2e-07,96870.0,96869.0,0.7187463]
[1732929131243,0.125,96917.0,96890.0,0.123209]
[1732929131469,0.216267,96962.0,96890.0,0.51895307]
[1732929131470,0.0772,96921.0,96890.0,0.51895307]
[1732929131679,0.0772,96921.0,96890.0,0.58197106]
[1732929132399,0.0478,96926.0,96890.0,0.58197106]
[1732929132400,0.0478,96926.0,96908.0,0.12319]
[1732929132616,0.125,96926.0,96908.0,0.27621225]
[1732929132853,0.125,96926.0,96908.0,0.29708761]
[1732929133756,0.125,96926.0,96908.0,0.30508761]
[1732929133757,0.0024608,96909.0,96908.0,0.30508761]
[1732929134220,0.0024608,96909.0,96908.0,0.30908761]
[1732929134485,0.0024608,96909.0,96908.0,0.30902773]
[1732929134710,0.0796608,96909.0,96908.0,0.16496237]
[1732929134935,0.0796608,96909.0,96908.0,0.06211716]
[1732929134936,0.1828498,96909.0,96908.0,0.06211716]
[1732929135163,0.1828498,96909.0,96908.0,0.03127583]
[1732929135386,0.18513285,96909.0,96908.0,0.03127583]
[1732929135663,0.23293285,96909.0,96908.0,0.03127583]
[1732929135888,0.2306498,96909.0,96908.0,0.03127583]
[1732929136329,0.2306498,96909.0,96908.0,0.02727583]
[1732929136542,0.2306498,96909.0,96908.0,0.01927583]
[1732929136543,0.2296498,96909.0,96908.0,0.01927583]
[1732929137457,0.2296498,96909.0,96888.0,0.113211]
[1732929137458,0.1264608,96909.0,96890.0,0.103209]
[1732929137686,0.2296498,96909.0,96908.0,0.002]
[1732929137899,0.2296498,96909.0,96908.0,0.02128139]
[1732929139451,0.2296498,96909.0,96908.0,0.01928139]
[1732929140221,0.2296498,96909.0,96908.0,0.02228139]
[1732929140460,0.2296498,96909.0,96908.0,0.01928139]
[1732929140997,0.2296498,96909.0,96908.0,0.02427978]
[1732929141431,0.2296498,96909.0,96908.0,0.02627978]
[1732929142351,0.2296498,96909.0,96908.0,0.02127978]
[1732929142775,0.2296498,96909.0,96908.0,0.02027978]
[1732929143241,0.2296498,96909.0,96908.0,0.02527978]
[1732929143877,0.2296498,96909.0,96908.0,0.02727978]
[1732929144350,0.2296498,96909.0,96908.0,0.02727951]
[1732929146961,0.1264608,96909.0,96908.0,0.02727951]
[1732929147391,0.0014608,96909.0,96908.0,0.02727951]
[1732929148323,0.1046498,96909.0,96908.0,0.02727951]
[1732929148813,0.2300498,96909.0,96908.0,0.02727951]
[1732929149247,0.2300498,96909.0,96908.0,0.008]
[1732929149453,0.2300498,96909.0,96908.0,0.02527951]
[1732929149669,0.2300498,96909.0,96908.0,0.01927951]
[1732929149883,0.2300498,96909.0,96908.0,0.02227951]
[1732929150102,0.3800498,96909.0,96908.0,0.02227951]
[1732929150992,0.3800498,96909.0,96908.0,0.02327951]
[1732929151213,0.2300498,96909.0,96908.0,0.02327951]
[1732929151454,0.2300498,96909.0,96908.0,0.004]
[1732929152369,0.2300498,96909.0,96908.0,0.001]
[1732929152602,0.103207,96892.0,96891.0,0.0008653]
[1732929153901,0.103207,96892.0,96891.0,0.0088653]
[1732929154360,0.228607,96892.0,96891.0,0.0128653]
[1732929157282,0.228607,96892.0,96891.0,0.03216132]
[1732929157706,0.228607,96892.0,96891.0,0.03216087]
[1732929159465,0.228607,96892.0,96891.0,0.02815474]
[1732929159696,0.228607,96892.0,96891.0,0.02015466]
[1732929159957,0.228607,96892.0,96891.0,0.0008653]
[1732929160181,0.228607,96892.0,96891.0,0.0018653]
[1732929160878,0.228607,96892.0,96891.0,0.0008653]
[1732929161955,0.228607,96892.0,96891.0,0.02015206]
[1732929163305,0.228607,96892.0,96891.0,0.02115206]
[1732929163527,0.228607,96892.0,96891.0,0.05201609]
[1732929163766,0.228607,96892.0,96891.0,0.05501609]
[1732929166113,0.228607,96892.0,96891.0,0.05101609]
[1732929166373,0.228607,96892.0,96891.0,0.02015206]
[1732929171335,0.228607,96892.0,96891.0,0.0008653]
[1732929171623,0.2303376,96892.0,96891.0,0.0201641]
[1732929179134,0.2303376,96892.0,96891.0,0.02017848]
[1732929180239,0.2303376,96892.0,96891.0,0.05109271]
[1732929183692,0.2303376,96892.0,96891.0,0.0511466]
[1732929186933,0.2303376,96892.0,96891.0,0.0008653]
[1732929187137,0.2303376,96892.0,96891.0,0.05117769]
[1732929187639,0.2303376,96892.0,96869.0,0.0008654]
[1732929187640,0.103231,96870.0,96869.0,0.0008654]
[1732929187839,0.225431,96870.0,96869.0,0.0008654]
[1732929188081,0.398431,96870.0,96869.0,0.0008654]
[1732929189018,0.40154848,96870.0,96869.0,0.0008654]
[1732929189233,0.40554848,96870.0,96869.0,0.0008654]
[1732929189711,0.40154848,96870.0,96869.0,0.0008654]
[1732929189919,0.40554848,96870.0,96869.0,0.0008654]
[1732929190148,0.39854848,96870.0,96869.0,0.0008654]
[1732929190620,0.40554848,96870.0,96869.0,0.0008654]
[1732929191071,0.40254848,96870.0,96869.0,0.0008654]
[1732929191544,0.40554848,96870.0,96869.0,0.0008654]
[1732929191786,0.4167529,96870.0,96869.0,0.0008654]
[1732929194594,0.2715529,96870.0,96869.0,0.0008654]
[1732929195956,0.2675529,96870.0,96869.0,0.0008654]
[1732929196185,0.2715529,96870.0,96869.0,0.0008654]
[1732929196869,0.2685529,96870.0,96869.0,0.0008654]
[1732929197136,0.10734848,96870.0,96869.0,0.0008654]
[1732929197332,0.11034848,96870.0,96869.0,0.0008654]
[1732929197554,0.11034848,96870.0,96869.0,0.03174004]
[1732929198395,0.10334848,96870.0,96869.0,0.03174004]
[1732929199324,0.10334848,96870.0,96869.0,0.03474004]
[1732929199624,0.10334848,96870.0,96869.0,0.05403726]
[1732929200333,0.10334848,96870.0,96869.0,0.05503726]
[1732929200791,0.00011748,96870.0,96869.0,0.18063726]
[1732929200995,0.00011748,96870.0,96869.0,0.38671447]
[1732929201706,0.00011748,96870.0,96869.0,0.38271447]
[1732929201940,0.00011748,96870.0,96869.0,0.38571447]
[1732929202236,0.00011748,96870.0,96869.0,0.38371447]
[1732929202665,0.00011748,96870.0,96869.0,0.39271447]
[1732929203332,0.00011748,96870.0,96869.0,0.34154261]
[1732929203555,0.00011748,96870.0,96869.0,0.39770451]
[1732929203790,0.00011748,96870.0,96869.0,0.41699799]
[1732929208252,0.00011748,96870.0,96869.0,0.39770495]
[1732929209844,0.00011748,96870.0,96869.0,0.29447295]
[1732929211371,0.00011748,96870.0,96869.0,0.24557295]
[1732929211791,0.00011748,96870.0,96869.0,0.34880495]
[1732929212010,0.00011748,96870.0,96869.0,0.24557295]
[1732929212230,0.00011748,96870.0,96869.0,0.34880495]
[1732929212933,0.00011748,96870.0,96869.0,0.24557295]
[1732929213674,0.00011748,96870.0,96869.0,0.34880308]
[1732929215827,0.00011748,96870.0,96869.0,0.38738786]
[1732929216944,0.00011748,96870.0,96869.0,0.29864261]
[1732929217181,0.00011748,96870.0,96869.0,0.35651964]
[1732929217366,0.00011748,96870.0,96869.0,0.38738739]
[1732929217843,0.00011748,96870.0,96869.0,0.44538739]
[1732929218082,0.0017304,96891.0,96871.0,0.20646]
[1732929218295,0.103212,96888.0,96887.0,0.03086499]
[1732929218514,0.00184792,96891.0,96887.0,0.11960977]
[1732929218769,0.00184792,96891.0,96878.0,0.1023424]
[1732929218770,0.00184792,96891.0,96890.0,0.03086239]
[1732929219022,0.10505592,96891.0,96890.0,0.08874478]
[1732929219457,0.00184792,96891.0,96890.0,0.19195378]
[1732929219674,0.00184792,96891.0,96890.0,0.08874478]
[1732929220132,0.00184792,96891.0,96890.0,0.19192784]
[1732929221041,0.00184792,96891.0,96890.0,0.19392784]
[1732929222154,0.00184792,96891.0,96890.0,0.19192784]
[1732929222364,0.00184792,96891.0,96890.0,0.19492784]
[1732929222580,0.00184792,96891.0,96890.0,0.20192784]
[1732929223466,0.00184792,96891.0,96890.0,0.30477305]
[1732929223701,0.00184792,96891.0,96890.0,0.42997305]
[1732929223937,0.00184792,96891.0,96890.0,0.43997305]
[1732929226783,0.00184792,96891.0,96890.0,0.43994166]
[1732929226983,0.00184792,96891.0,96890.0,0.45079519]
[1732929227899,0.00184792,96891.0,96890.0,0.36210774]
[1732929228164,0.00184792,96891.0,96890.0,0.40066714]
[1732929228390,0.00184792,96891.0,96890.0,0.45079436]
[1732929228602,0.00184792,96891.0,96890.0,0.40066714]
[1732929228813,0.00184792,96891.0,96890.0,0.41224285]
[1732929229023,0.00184792,96891.0,96890.0,0.45080832]
[1732929231035,0.00184792,96891.0,96890.0,0.46080832]
[1732929231925,0.00184792,96891.0,96890.0,0.45780832]
[1732929232152,0.00184792,96891.0,96890.0,0.46280832]
[1732929232370,0.00184792,96891.0,96890.0,0.45580832]
[1732929232851,0.206388,96905.0,96890.0,0.34159932]
[1732929233161,0.00140087,96909.0,96891.0,0.15298032]
[1732929233162,0.206394,96902.0,96891.0,0.15298032]
[1732929233389,0.046,96900.0,96892.0,0.0578482]
[1732929233657,0.103206,96893.0,96892.0,0.0578482]
[1732929233846,0.103208,96891.0,96890.0,0.00959716]
[1732929234083,0.25759154,96891.0,96890.0,0.03915455]
[1732929234324,0.25759154,96891.0,96890.0,0.08927987]
[1732929234325,0.405308,96891.0,96890.0,0.08927987]
[1732929234549,0.405308,96891.0,96890.0,0.05072784]
[1732929234791,0.405308,96891.0,96890.0,0.01987585]
[1732929234996,0.405308,96891.0,96890.0,0.0507288]
[1732929235209,0.405308,96891.0,96890.0,0.0517288]
[1732929235669,0.405308,96891.0,96890.0,0.0507288]
[1732929235879,0.406308,96891.0,96890.0,0.05072634]
[1732929237242,0.407308,96891.0,96890.0,0.05072647]
[1732929240026,0.384308,96891.0,96890.0,0.05072647]
[1732929240238,0.3400388,96891.0,96890.0,0.05072647]
[1732929240441,0.3400388,96891.0,96890.0,0.05071916]
[1732929241780,0.3390388,96891.0,96890.0,0.05071916]
[1732929242399,0.3380388,96891.0,96890.0,0.05071916]
[1732929242647,0.3380388,96891.0,96890.0,0.00059716]
[1732929242980,0.1049388,96891.0,96890.0,0.03243995]
[1732929243185,0.1049388,96891.0,96890.0,0.05171669]
[1732929243394,0.1049388,96891.0,96890.0,0.09027018]
[1732929244007,0.0017308,96891.0,96890.0,0.09027018]
[1732929244382,0.1049388,96891.0,96890.0,0.09027018]
[1732929244625,0.0017308,96891.0,96890.0,0.09027018]
[1732929244835,0.0017308,96891.0,96890.0,0.19347918]
[1732929245036,0.0017308,96891.0,96890.0,0.09027018]
[1732929245657,0.0017308,96891.0,96890.0,0.19347918]
[1732929245878,0.0017308,96891.0,96890.0,0.29632439]
[1732929246517,0.0017308,96891.0,96890.0,0.29532439]
[1732929246923,0.0017308,96891.0,96890.0,0.30332439]
[1732929247970,0.0017308,96891.0,96890.0,0.30632439]
[1732929248625,0.0017308,96891.0,96890.0,0.29532439]
[1732929248849,0.0017308,96891.0,96890.0,0.30032439]
[1732929249052,0.0017308,96891.0,96890.0,0.30732439]
[1732929249468,0.0017308,96891.0,96890.0,0.30032439]
[1732929249684,0.0017308,96891.0,96890.0,0.30932439]
[1732929251470,0.103199,96900.0,96892.0,0.103207]
[1732929251691,0.103199,96900.0,96893.0,0.19151823]
[1732929251913,0.103199,96900.0,96894.0,0.08867302]
[1732929252125,0.103199,96900.0,96895.0,0.19151823]
[1732929252330,0.206389,96905.0,96896.0,0.08867302]
[1732929252535,0.103199,96900.0,96897.0,0.0886779]
[1732929252746,0.103199,96900.0,96898.0,0.05783341]
[1732929252985,0.206389,96905.0,96899.0,0.03855561]
[1732929253207,0.103198,96901.0,96900.0,0.0694001]
[1732929253435,0.103198,96901.0,96900.0,0.0886779]
[1732929255613,0.103198,96901.0,96900.0,0.0916779]
[1732929256111,0.103198,96901.0,96900.0,0.0906779]
[1732929256348,0.103198,96901.0,96900.0,0.0936779]
[1732929257406,0.103198,96901.0,96900.0,0.0916779]
[1732929257647,0.103198,96901.0,96900.0,0.0926779]
[1732929258077,0.103198,96901.0,96900.0,0.12352661]
[1732929258283,0.103198,96901.0,96900.0,0.0926779]
[1732929258498,0.103198,96901.0,96900.0,0.12352661]
[1732929258741,0.103198,96901.0,96900.0,0.0926779]
[1732929258979,0.103198,96901.0,96900.0,0.12352661]
[1732929259410,0.103198,96901.0,96900.0,0.12358305]
[1732929259861,0.103198,96901.0,96900.0,0.09272291]
[1732929261882,0.103198,96901.0,96900.0,0.12358305]
[1732929262122,0.103198,96901.0,96900.0,0.09272291]
[1732929264242,0.103198,96901.0,96900.0,0.09279743]
[1732929264929,0.1049284,96901.0,96900.0,0.09279743]
[1732929267543,0.1045674,96901.0,96900.0,0.09279743]
[1732929269187,0.1045674,96901.0,96900.0,0.0928613]
[1732929272432,0.1049284,96901.0,96900.0,0.09293911]
[1732929272671,0.0017304,96901.0,96900.0,0.09293911]
[1732929273338,0.1049284,96901.0,96900.0,0.09293911]
[1732929274482,0.103198,96901.0,96900.0,0.09293911]
[1732929274697,0.103198,96901.0,96900.0,0.004]
[1732929275551,0.185598,96901.0,96900.0,0.004]
[1732929275762,0.185598,96901.0,96900.0,0.05429078]
[1732929275985,0.185598,96901.0,96900.0,0.092976]
[1732929277480,0.185598,96901.0,96900.0,0.0938411]
[1732929277910,0.1873282,96901.0,96900.0,0.0938411]
[1732929281251,0.33961143,96901.0,96900.0,0.0938411]
[1732929281464,0.50997341,96901.0,96900.0,0.0525611]
[1732929281685,0.52112088,96901.0,96900.0,0.0525611]
[1732929282350,0.52112088,96901.0,96900.0,0.01387588]
[1732929282804,0.52112088,96901.0,96900.0,0.0008651]
[1732929283712,0.52412088,96901.0,96900.0,0.0008651]
[1732929294060,0.35147567,96901.0,96900.0,0.0008651]
[1732929294312,0.26907567,96901.0,96900.0,0.02015511]
[1732929296298,0.52062088,96901.0,96900.0,0.02015511]
[1732929297406,0.52062088,96901.0,96900.0,0.0008651]
[1732929298493,0.52062088,96901.0,96900.0,0.02015943]
[1732929298708,0.52062088,96901.0,96900.0,0.0008651]
[1732929299361,0.52062088,96901.0,96900.0,0.02016047]
[1732929300061,0.39492088,96901.0,96900.0,0.02016047]
[1732929300284,0.26907567,96901.0,96900.0,0.02016047]
[1732929300496,0.26907567,96901.0,96900.0,0.05103297]
[1732929300729,0.39492088,96901.0,96900.0,0.0008651]
[1732929300970,0.52062088,96901.0,96900.0,0.05103271]
[1732929303094,0.39492088,96901.0,96900.0,0.05103271]
[1732929303538,0.2579282,96901.0,96900.0,0.05103271]
[1732929303751,0.1079282,96901.0,96900.0,0.05103271]
[1732929304189,0.1079282,96901.0,96900.0,0.08190509]
[1732929304631,0.1079282,96901.0,96900.0,0.12893271]
[1732929305052,0.1099282,96901.0,96900.0,0.12893271]
[1732929305525,0.1049282,96901.0,96900.0,0.12893271]
[1732929305753,0.1079282,96901.0,96900.0,0.13493271]
[1732929306219,0.1049282,96901.0,96900.0,0.13493271]
[1732929306649,0.1049282,96901.0,96900.0,0.13693271]
[1732929307302,0.1049282,96901.0,96900.0,0.05903271]
[1732929311084,0.10721153,96901.0,96900.0,0.05903271]
[1732929311315,0.36005682,96901.0,96900.0,0.05903271]
[1732929311548,0.2779282,96901.0,96900.0,0.05903271]
[1732929312156,0.2779282,96901.0,96900.0,0.05703271]
[1732929312363,0.2789282,96901.0,96900.0,0.05703271]
[1732929312568,0.2789282,96901.0,96900.0,0.05103271]
[1732929312789,0.2799282,96901.0,96900.0,0.05103271]
[1732929313215,0.46447341,96901.0,96900.0,0.05105106]
[1732929313419,0.46447341,96901.0,96900.0,6e-08]
[1732929313662,0.51277341,96901.0,96900.0,6e-08]
[1732929313874,0.51277341,96901.0,96891.0,0.0008652]
[1732929313875,0.173,96900.0,96891.0,0.0008652]
[1732929314115,0.276207,96892.0,96891.0,0.0008652]
[1732929314333,0.37905221,96892.0,96891.0,0.0008652]